Cogmind - Beta 9.1 @@@ ROGUE MODE // 2019.10.31 @ 11:50:02 Player: TehFrederick Result: Destroyed by G-47 Trooper with Particle Gun Performance ------------- Evolutions (2) 1000 Regions Visited (4) 800 Robots Destroyed (67) 335 Value Destroyed (1927) 1927 Prototype IDs (0) 0 Alien Tech Used (0) 0 Bonus (311) 311 TOTAL SCORE: 4373 Bonus ------- High Alert Combat Kills 111 Entered Garrisons 200 Cogmind --------- Core Integrity 0/550 Matter 113/300 Energy 100/100 System Corruption 0% Temperature Cool (9) Location -8/Garrison Parts ------- Power (1) Propulsion (4) Compact Wheel Utility (4) Medium Storage Unit Improved Signal Interpreter Improved Targeting Computer Improved Targeting Computer Weapon (2) High-powered Shotgun Mini Grenade Launcher Inventory (8) Light Nuclear Core Cooling System Structural Scanner Transmission Jammer Relay Coupler [Grunt] (29) Heavy EM Pulse Gun Peak State ------------ Power Light Deuterium Engine Propulsion Improved Hover Unit Improved Hover Unit Improved Hover Unit Improved Hover Unit Utility Medium Storage Unit Structural Scanner Improved Sensor Array Improved Targeting Computer Weapon Heavy EM Pulse Gun High-powered Shotgun Inventory Improved Ion Engine Cooling System Melee Analysis Suite Transmission Jammer Particle Gun Light EM Pulse Cannon Heavy Assault Rifle Grenade Launcher [Rating: 23] Favorites ----------- Power Ion Engine Engine Ion Engine Propulsion Improved Hover Unit Leg Aluminum Leg Wheel Compact Wheel Hover Unit Improved Hover Unit Utility Medium Storage Unit Device Structural Scanner Storage Medium Storage Unit Processor Improved Targeting Computer Weapon Grenade Launcher Energy Gun Heavy EM Pulse Gun Energy Cannon Light EM Pulse Cannon Ballistic Gun High-powered Shotgun Launcher Grenade Launcher Special Weapon Mining Laser Build | -11 -10 -9 -8 -8 ------- Run | Scr Mat Mat Mat Gar Slots Evolved 4 | . . 2 2 . Power . | . . . . . Propulsion 2 | . . . 2 . Utility 2 | . . 2 . . Weapon . | . . . . . Parts Attached 75 | 6 30 19 15 5 Power 11 | 1 5 2 3 . Engine 11 | 1 5 2 3 . Core . | . . . . . Reactor . | . . . . . Propulsion 17 | 2 6 5 4 . Treads . | . . . . . Leg 7 | . 6 1 . . Wheel 4 | 2 . . 2 . Hover 6 | . . 4 2 . Flight . | . . . . . Utility 13 | 1 3 4 3 2 Device 5 | . . 2 2 1 Storage 4 | 1 2 1 . . Processor 4 | . 1 1 1 1 Hackware . | . . . . . Protection . | . . . . . Artifact . | . . . . . Weapon 34 | 2 16 8 5 3 Energy Gun 8 | 1 6 1 . . Energy Cannon 2 | . . 1 . 1 Ballistic Gun 11 | 1 5 1 3 1 Ballistic Cannon . | . . . . . Launcher 12 | . 4 5 2 1 Special Weapon 1 | . 1 . . . Impact Weapon . | . . . . . Slashing Weapon . | . . . . . Piercing Weapon . | . . . . . Special Melee Weapon . | . . . . . Unidentified Prototypes . | . . . . . Parts Lost 22 | . 6 5 5 6 Power 3 | . . 1 1 1 Propulsion 8 | . 1 2 3 2 Utility 1 | . . . . 1 Weapon 10 | . 5 2 1 2 Highest Loss Streak 5 | . 1 4 3 5 Average Slot Usage (%) 92 | . 95 93 92 85 Engine 10 | . 14 8 8 7 Leg 6 | . 11 10 . . Wheel 8 | . 14 . 7 16 Hover 9 | . . 9 23 7 Device 10 | . . 21 11 6 Storage 11 | . 14 11 9 9 Processor 14 | . 13 11 15 20 Energy Gun 6 | . 12 5 4 . Energy Cannon 1 | . . 1 . 3 Ballistic Gun 6 | . 6 4 7 4 Launcher 7 | . 7 9 5 9 Naked Turns . | . . . . . Heaviest Build 22 | 12 19 21 22 21 Greatest Support 32 | 26 26 20 32 32 Greatest Overweight (x) 5 | . 5 4 1 . Average Overweight (x) . | . . . . . Largest Inventory Capacity 8 | 6 8 8 8 8 Average Capacity 7 | 5 7 8 8 8 Most Carried 8 | 4 8 8 8 8 Average Carried 7 | 1 7 7 7 7 Final Capacity 8 | 6 8 8 8 8 Final Carried 8 | 4 8 8 8 6 Class Distribution -------------------- 75% | Mutant 24% | Scavenger-Mutant Dominant Class ---------------- Mutant | -10/Materials Mutant | -9/Materials Scavenger-Mutant | -8/Materials Scavenger-Mutant | -8/Garrison Resources | -11 -10 -9 -8 -8 ----------- Run | Scr Mat Mat Mat Gar Matter Collected 1384 | 242 349 499 225 69 Remotely . | . . . . . Salvage Created 1957 | . 613 672 524 148 Parts 131 | . 39 41 28 23 Haulers Intercepted 6 | . 2 2 2 . Recyclers Shooed . | . . . . . Parts Field Recycled . | . . . . . Retrieved Matter . | . . . . . Parts Self-Destructed . | . . . . . Prevented . | . . . . . Kills | -11 -10 -9 -8 -8 ------- Run | Scr Mat Mat Mat Gar Combat Hostiles Destroyed 50 | . 16 17 6 11 Guns 27 | . 13 6 4 4 Cannons 2 | . . 1 . 1 AOE 21 | . 3 10 2 6 Classes Destroyed 10 | . 6 2 2 . Worker 3 | . 1 2 . . Tunneler 1 | . 1 . . . Hauler 6 | . 2 2 2 . Recycler 2 | . . 1 1 . Watcher 5 | . 3 . 2 . Swarmer 17 | . 6 4 . 7 Grunt 23 | . 10 9 2 2 Duelist 1 | . . . 1 . Sentry 7 | . . 4 2 1 Hunter 2 | . . . 1 1 Best Kill Streak 9 | . 8 9 3 5 Combat Bots Only 8 | . 6 8 3 5 Max Kills in Single Turn 3 | . 3 3 2 2 Gunslinging 1 | . 1 . . . Exploded 3 | . 2 3 2 2 Melee . | . . . . . Uniques/NPCs Destroyed . | . . . . . Combat | -11 -10 -9 -8 -8 -------- Run | Scr Mat Mat Mat Gar Damage Taken 3059 | . 849 925 389 896 Core 969 | . 171 241 105 452 Absorbed by Shields . | . . . . . Core Remaining (%) 56 | 100 31 39 . . Volleys Fired 160 | . 59 46 34 21 Largest 2 | . 2 2 2 2 Hottest 105 | . 105 86 75 86 Shots Fired 242 | . 96 70 39 37 Gun 186 | . 89 43 35 19 Cannon 11 | . . 9 . 2 Launcher 43 | . 5 18 4 16 Special 2 | . 2 . . . Kinetic 85 | . 26 28 12 19 Thermal 42 | . 42 . . . Explosive 43 | . 5 18 4 16 Electromagnetic 72 | . 23 24 23 2 Robot Hit Streak 20 | . 13 20 9 5 Robot Miss Streak 4 | . 3 4 2 3 Penetration Max . | . . . . . Secondary Targets 2 | . 2 . . . Max Gunslinging Chain 1 | . 1 . . . Shots Hit Robots 160 | . 67 45 28 20 Core Hits 118 | . 39 38 17 24 Critical Hits . | . . . . . Critical Kills . | . . . . . Critical Parts Destroyed . | . . . . . Melee Attacks . | . . . . . Impact . | . . . . . Slashing . | . . . . . Piercing . | . . . . . Sneak Attacks . | . . . . . Combat Hostiles . | . . . . . Follow-up Attacks . | . . . . . Damage Inflicted 4516 | . 1289 1598 580 1049 Guns 1862 | . 784 492 451 135 Cannons 98 | . . 78 . 20 Explosions 2556 | . 505 1028 129 894 Melee . | . . . . . Ramming . | . . . . . Kinetic 863 | . 228 326 174 135 Thermal 520 | . 331 189 . . Explosive 2299 | . 464 812 129 894 Electromagnetic 834 | . 266 271 277 20 Impact . | . . . . . Slashing . | . . . . . Piercing . | . . . . . Highest Corruption 2 | . 2 . . . Average Corruption 2 | . 2 . . . Corruption Purged . | . . . . . Effects 7 | . 7 . . . Message Errors 2 | . 2 . . . Energy Discharges 1 | . 1 . . . Data Loss (minor) 1 | . 1 . . . Targeting Errors 2 | . 2 . . . Weapon Failures 1 | . 1 . . . Overload Shots . | . . . . . Overflow Damage 200 | . 36 129 . 35 Projectiles . | . . . . . Explosions 200 | . 36 129 . 35 Melee . | . . . . . Knockbacks . | . . . . . Impact . | . . . . . Kinetic . | . . . . . Secondary . | . . . . . Self-Inflicted Damage 412 | . 38 209 26 139 Shots 10 | . 1 5 1 3 Rammed . | . . . . . Targets Rammed . | . . . . . Kicked . | . . . . . Crushed . | . . . . . Highest Temperature 253 | . 253 61 68 14 Average Temperature 63 | . 93 20 23 6 Received Heat Transfer 912 | . 285 267 108 252 Effects 1 | . 1 . . . Interference 1 | . 1 . . . Siege Activations . | . . . . . Robots Corrupted . | . . . . . Combat Hostiles . | . . . . . Parts Fried 5 | . . 1 4 . Impact Corruptions . | . . . . . Robots Melted . | . . . . . Combat Hostiles . | . . . . . Parts Melted 1 | . . 1 . . Heat Transferred 847 | . 747 100 . . Parts Sabotaged . | . . . . . Parts Stolen . | . . . . . Parts Stripped . | . . . . . Power Chain Reactions 1 | . 1 . . . Missiles Intercepted . | . . . . . Alert | -11 -10 -9 -8 -8 ------- Run | Scr Mat Mat Mat Gar Peak Influence 594 | . 327 594 357 509 Average Influence 270 | . 160 367 277 333 Maximum Alert Level 2 | . 1 2 1 2 Low Security (%) 35 | . . . . . Level 1 43 | . . . . . Level 2 21 | . . . . . Level 3 . | . . . . . Level 4 . | . . . . . Level 5 . | . . . . . High Security . | . . . . . Max Security . | . . . . . Squads Dispatched 5 | . 3 2 . . Investigation 1 | . 1 . . . Extermination . | . . . . . Reinforcement 4 | . 2 2 . . Assault . | . . . . . Garrison . | . . . . . Intercept . | . . . . . Construction Impeded . | . . . . . Haulers Reinforced . | . . . . . Stealth | -11 -10 -9 -8 -8 --------- Run | Scr Mat Mat Mat Gar Distress Signals 5 | . 3 2 . . Communications Jammed . | . . . . . Distress Signals . | . . . . . Times Spotted 74 | . 26 20 14 14 Peak Tracking Total 9 | . 9 7 5 9 Tactical Retreats 4 | . 2 . 2 . Traps | -11 -10 -9 -8 -8 ------- Run | Scr Mat Mat Mat Gar Traps Triggered 3 | . 2 . . 1 Indirectly . | . . . . . Trap Hack Attempts . | . . . . . Triggered . | . . . . . Disarmed . | . . . . . Reprogrammed . | . . . . . Reused . | . . . . . Traps Extracted . | . . . . . Installed . | . . . . . Triggered . | . . . . . Machines | -11 -10 -9 -8 -8 ---------- Run | Scr Mat Mat Mat Gar Machines Disabled 9 | . 3 5 . 1 Max in Single Turn 3 | . 2 3 . 1 Garrison Relay 1 | . . . . 1 Machines Sabotaged . | . . . . . Garrisons Compromised . | . . . . . Overloaded Fab Kills . | . . . . . Fab Network Shutdowns . | . . . . . Hacking | -11 -10 -9 -8 -8 --------- Run | Scr Mat Mat Mat Gar Machines Accessed 11 | . 3 3 5 . Terminals 2 | . 1 . 1 . Fabricators . | . . . . . Repair Stations 3 | . 1 1 1 . Recycling Units 3 | . 1 1 1 . Scanalyzers 2 | . . 1 1 . Garrison Access 1 | . . . 1 . Total Hacks 29 | . 6 8 15 . Successful 25 | . 6 7 12 . Failed 4 | . . 1 3 . Catastrophic . | . . . . . Database Lockouts . | . . . . . Manual . | . . . . . Terminals 4 | . 1 . 3 . Fabricators . | . . . . . Repair Stations 11 | . 4 5 2 . Recycling Units 3 | . 1 1 1 . Scanalyzers 10 | . . 2 8 . Garrison Access 1 | . . . 1 . Terminal Hacks 3 | . 1 . 2 . Record 1 | . . . 1 . Alert Level 1 | . 1 . . . Dispatch Records 1 | . . . 1 . Fabricator Hacks . | . . . . . Repair Station Hacks 8 | . 4 4 . . Scan Component 5 | . 3 2 . . Repair 3 | . 1 2 . . Recycling Unit Hacks 3 | . 1 1 1 . Report Inventory 3 | . 1 1 1 . Scanalyzer 10 | . . 2 8 . Insert Component 4 | . . 1 3 . Analyze 6 | . . 1 5 . Garrison Access Hacks 1 | . . . 1 . Unlock Access 1 | . . . 1 . Unauthorized Hacks . | . . . . . Terminals . | . . . . . Fabricators . | . . . . . Repair Stations . | . . . . . Recycling Units . | . . . . . Scanalyzers . | . . . . . Garrison Access . | . . . . . Data Cores Recovered . | . . . . . Used . | . . . . . Hacking Detections 3 | . . 1 2 . Full Trace Events . | . . . . . Feedback Events . | . . . . . Feedback Blocked . | . . . . . Robot Schematics Acquired . | . . . . . Robots Built . | . . . . . Matter . | . . . . . Time . | . . . . . Total Robot Build Rating . | . . . . . Part Schematics Acquired 3 | . . 1 2 . Parts Built . | . . . . . Matter . | . . . . . Time . | . . . . . Total Part Build Rating . | . . . . . Parts Repaired 3 | . 1 2 . . Time 90 | . 26 64 . . Parts Recycled . | . . . . . Recycled Matter . | . . . . . Retrieved Matter . | . . . . . Retrieved Components . | . . . . . Parts Scanalyzed 4 | . . 1 3 . Part Schematics Acquired 3 | . . 1 2 . Parts Damaged 1 | . . . 1 . Bothacking | -11 -10 -9 -8 -8 ------------ Run | Scr Mat Mat Mat Gar Used RIF Installer . | . . . . . Robots Hacked . | . . . . . Non-combat . | . . . . . Combat . | . . . . . Robot Hacks Applied . | . . . . . Relay Couplers Released 5 | . . . . 5 Machine Destruction 5 | . . . . 5 Robots Rewired . | . . . . . Allies Hacked . | . . . . . Hacks Repelled . | . . . . . Allies | -11 -10 -9 -8 -8 -------- Run | Scr Mat Mat Mat Gar Total Allies . | . . . . . Largest Group . | . . . . . Highest-Rated Group . | . . . . . Highest-Rated Ally . | . . . . . Total Orders . | . . . . . Ally Attacks . | . . . . . Total Damage . | . . . . . Kills . | . . . . . Allies Corrupted . | . . . . . Allies Melted . | . . . . . Intel | -11 -10 -9 -8 -8 ------- Run | Scr Mat Mat Mat Gar Robot Analysis Total . | . . . . . Derelict Logs Recovered . | . . . . . Drone Launches . | . . . . . Drone Recoveries . | . . . . . Exploration | -11 -10 -9 -8 -8 ------------- Run | Scr Mat Mat Mat Gar Turns Passed 2496 | 55 763 742 589 347 Spaces Moved 1651 | 47 444 408 507 245 Core 5 | 3 1 1 . . Treads . | . . . . . Legs 365 | . 173 192 . . Wheels 726 | 44 270 . 167 245 Hover 555 | . . 215 340 . Flight . | . . . . . Fastest Speed 48 | 50 90 116 48 100 Average Speed 98 | 86 104 123 73 100 Slowest Speed 300 | 90 300 250 116 100 Overloaded Moves . | . . . . . Propulsion Burnouts . | . . . . . Robots Hopped . | . . . . . Cave-ins Triggered 1 | . 1 . . . Exploration Rate (%) 42 | 3 69 44 41 53 Regions Visited 4 Branch Regions . Pre-discovered Areas . | . . . . . Known Exits Taken 1 | . . . 1 . Unknown Exits Taken 3 | 1 1 1 . . Scrap Searched . | . . . . . Spaces Dug 2 | . 2 . . . Terrain Destroyed 283 | . 35 126 29 93 Melee . | . . . . . Projectile 2 | . 2 . . . AOE 281 | . 33 126 29 93 Actions | -11 -10 -9 -8 -8 --------- Run | Scr Mat Mat Mat Gar Total 2279 | 58 649 576 684 312 Wait 301 | 2 78 86 102 33 Move 1645 | 46 443 407 506 243 Hop . | . . . . . Pick Up 42 | 4 15 9 12 2 Fast Attach 24 | 6 9 3 6 . Attach 21 | . 6 9 2 4 Detach 6 | . 3 3 . . Swap 30 | . 15 7 7 1 Drop 43 | . 21 6 15 1 Fire 160 | . 59 46 34 21 Melee . | . . . . . Ram . | . . . . . Kick . | . . . . . Crush . | . . . . . Escape Stasis 7 | . . . . 7 Rewire . | . . . . . Trap . | . . . . . Miscellaneous . | . . . . . Route ------- -11/Scrapyard -10/Materials (discovered 3 exits: *Mat x2 / [*Min]) -9/Materials (discovered 2 exits: *Mat / [*Min]) -8/Materials (discovered 2 exits: *Fac / Gar) -8/Garrison (discovered 1 exit: *Mat) History --------- Turn | Location | Event 16 | -11/Scrapyard | Discovered new exit (range 15) 56 | -11/Scrapyard | Entered Materials 99 | -10/Materials | Discovered new exit (range 15) 142 | -10/Materials | Crushed by falling debris 301 | -10/Materials | Build established: Mutant 502 | -10/Materials | Core integrity fell below 50% 701 | -10/Materials | Discovered new exit (range 15) 747 | -10/Materials | Discovered new exit (range 15) 794 | -10/Materials | Repaired Grenade Launcher 819 | -10/Materials | Entered another Materials area 819 | -9/Materials | Evolved 2 slots: Utility x2 1200 | -9/Materials | Destroyed 8 combat bots 1214 | -9/Materials | Discovered new exit (range 12) 1215 | -9/Materials | Core integrity fell below 50% 1224 | -9/Materials | Lost 4 parts (2n2w) 1384 | -9/Materials | Discovered new exit (range 16) 1478 | -9/Materials | Repaired Imp. Hover Unit 1511 | -9/Materials | Repaired Imp. Hover Unit 1561 | -9/Materials | Entered another Materials area 1561 | -8/Materials | Evolved 2 slots: Propulsion x2 1838 | -8/Materials | Lost 3 parts (1p2n) 2016 | -8/Materials | Discovered new exit (range 3) 2021 | -8/Materials | Identified exit to Factory 2099 | -8/Materials | Identified exit to Garrison 2130 | -8/Materials | Build established: Scavenger-Mutant 2150 | -8/Materials | Entered Garrison 2228 | -8/Garrison | Triggered checkpoint 2278 | -8/Garrison | Triggered checkpoint 2348 | -8/Garrison | Discovered new exit (range 10) 2362 | -8/Garrison | Triggered checkpoint 2373 | -8/Garrison | Garrison Relay disabled 2404 | -8/Garrison | Identified exit to Materials 2405 | -8/Garrison | Attempted to access garrison exit controls, blocked by remote lockdown 2448 | -8/Garrison | Triggered checkpoint 2450 | -8/Garrison | Triggered checkpoint 2456 | -8/Garrison | Triggered checkpoint 2459 | -8/Garrison | Core integrity fell below 50% 2487 | -8/Garrison | Core integrity fell below 20% 2491 | -8/Garrison | Lost 5 parts (1p2n2w) 2497 | -8/Garrison | Destroyed by G-47 Trooper with Particle Gun Last Messages --------------- 02373_ Relay Coupler [Duelist] tumbles out of relay unit. 02373_ Relay Coupler [Sentry] tumbles out of relay unit. 02373_ Relay Coupler [Grunt] tumbles out of relay unit. 02379_ Acquired Relay Coupler [Grunt]. 02404_ EXIT=IDENTIFIED: MATERIALS 02405_ Attempting to access garrison exit controls... 02405_ Remote lockdown engaged. 02416_ Dropped Transmission Jammer. 02418_ Acquired Transmission Jammer. 02448_ Beams of light sweep through the air. An alarm sounds. 02449_ Lgt. EM Pulse Cannon destroyed. 02450_ Beams of light sweep through the air. An alarm sounds. 02450_ Com. Wheel destroyed. 02455_ The unstable cave ceiling collapses. 02456_ Beams of light sweep through the air. An alarm sounds. 02456_ Imp. Hover Unit destroyed. 02458_ Imp. Ion Engine destroyed. 02460_ Mni. Grenade Launcher destroyed. 02476_ G-47 Trooper destroyed. 02490_ Destroyed Particle Gun. Map ----- +----------------------------------------------------+ | ?????????????????????????????????????????????????? | | ?????????????????????????????????????????????????? | | ?????????????????????????????????????????????????? | | ?????????????????????????????????????????????????? | | ?????????????????????????????????????????????????? | | ?????????????????????????????????????????????????? | | ?????????????????????????????????????????????????? | | ?????????????????????????????????????????????????? | | ?????????????????????????????????????????????????? | | ?????????????????????????????????????????????????? | | ?????????????????????????????????????????????????? | | ?????????????????????????????????????????????????? | | ?????????????????????????????????????????????????? | | ?????????????????????????????????????????????????? | | ?????????????????????????????????????????????????? | | ?????????????????????###?????????????????????????? | | ????????????????????? ?????????????????????????? | | ????????????????????? ?????????????????????????? | | ?????????????????????# ?????????????????????????? | | ?????????????????????# #????????????????????????? | | ?????????????????????# #????????????????????????? | | ?????????????????????# #????????????????????????? | | ?????????????????????# #????????????????????????? | | ?????????????????????# ####?????????????? ??????? | | ???????????????####### # ######??????? ??????? | | ???????????????# @ #??????? ##????? | | ?????????????????#### Y #??????? ????? | | ???????????????????# #### #??????? ????? | | ??????????????????# ##??# #??????? #????? | | ?????????????????# gg #???# #??????? #????? | | ?????????????????# g ???# #??????# #????? | | ???????????????? gg ???# #??????# #????? | | ???????????????# % # ##??# ######## #????? | | ???????????????# ? #???# ## ## #????? | | ???????????????## = ? #??## ## ## ##???? | | ????????????????##### %!###### ##### | | ???????????????????? g | | ????????????????????# | | ???????????????????? ###### ## ## ##### | | ???????????????????? # ##???### ## ## #???? | | ????????????????????###?????# #?? | | ????????????????????????????# #?? | | ????????????????????????????# #?? | | ????????????????????????????# #?? | | ????????????????????????????### # ###?? | | ??????????????????????######### # ## #???? | | ?????????????????????? #???? | | ?????????????????#######????## #???? | | ????????########## #?????# #???? | | ????????# = [ #??????### ## ## ##???? | +----------------------------------------------------+ Best States ------------- Heat Dissipation 31 Energy Generation 14 Energy Capacity 265 Matter Stores 300 Matter Capacity 300 Sight Range 16 Robot Scan Range 16 Terrain Scan Density 10 Jamming Range 8 Evasion (%) 55 Targeting Accuracy 12 Item Schematics ----------------- Imp. Hover Unit | -9/Materials | Scanalyzed Cooling System | -8/Materials | Scanalyzed Assault Cannon | -8/Materials | Scanalyzed Robot Schematics ------------------ None Fabricated ------------ Nothing Alien Tech Used ----------------- None Achievements -------------- I Spy Let's See Who's Tougher Challenges ------------ None Game ------ Seed ChainLayeredInjector Manual? 0 Play Time 00:57:13 Cumulative 7.7 hours Start 2019.10.31 @ 10:21:53 End 2019.10.31 @ 11:50:02 Sessions 1 Manual Loads 0 Difficulty Rogue Special Mode None Game No. 6 Rogue 6 Adventurer 0 Explorer 0 Win Type - Total 0 Types 0/0/0/0/0/0/0 Lore% 13 Gallery% 14 Achievement% 14 Wizard Run 0 Options --------- ASCII 0 Keyboard 1 Movement Numpad Keybinds 0 Fullscreen 1 Font 24/Smallcaps Map View 76x50 Tactical HUD 1 Map Filters NONE Filters NONE Steam 1 RUN: 170aa253-7c83-4446-919c-c9182c9c50e5